[Event "Late-Titled-Tuesday-Blitz-October-24-2023"]
[Site "Chess.com"]
[Date "2023.10.24"]
[Round "3"]
[White "Arash_Tahbaz"]
[Black "Balla_Tamas"]
[Result "1-0"]
[WhiteElo "2883"]
[BlackElo "2346"]
[TimeControl "180+1"]
[EndTime "14:26:53 PDT"]
[Termination "Arash_Tahbaz won by resignation"]

1. Nf3 {[%clk 0:03:00.9]} 1... c5 {[%clk 0:03:00.2]} 2. g3 {[%clk 0:03:01.7]}
2... Nc6 {[%clk 0:03:00.8]} 3. Bg2 {[%clk 0:03:02.6]} 3... g6 {[%clk 0:03:01.1]}
4. O-O {[%clk 0:03:03.5]} 4... Bg7 {[%clk 0:03:01.7]} 5. c3 {[%clk 0:03:04.1]}
5... e5 {[%clk 0:02:55.6]} 6. c4 {[%clk 0:03:04.4]} 6... d6 {[%clk 0:02:55.7]}
7. Nc3 {[%clk 0:03:05.1]} 7... Be6 {[%clk 0:02:48.7]} 8. d3 {[%clk 0:03:06]}
8... Nge7 {[%clk 0:02:36.4]} 9. Ne1 {[%clk 0:03:05.7]} 9... O-O {[%clk
0:02:30.8]} 10. Nd5 {[%clk 0:03:02.9]} 10... Qd7 {[%clk 0:02:18.5]} 11. Nc2
{[%clk 0:02:59.7]} 11... Bh3 {[%clk 0:02:12]} 12. Rb1 {[%clk 0:02:57.8]} 12...
Bxg2 {[%clk 0:02:11.4]} 13. Nxe7+ {[%clk 0:02:58.1]} 13... Qxe7 {[%clk
0:01:45.7]} 14. Kxg2 {[%clk 0:02:59]} 14... a5 {[%clk 0:01:46.2]} 15. Ne3 {[%clk
0:02:56.1]} 15... f6 {[%clk 0:01:32.7]} 16. a3 {[%clk 0:02:52.5]} 16... Qd7
{[%clk 0:01:25.3]} 17. Nd5 {[%clk 0:02:52.7]} 17... Rad8 {[%clk 0:01:21.4]} 18.
b4 {[%clk 0:02:52.4]} 18... axb4 {[%clk 0:01:21.4]} 19. axb4 {[%clk 0:02:53.3]}
19... cxb4 {[%clk 0:01:13.7]} 20. Nxb4 {[%clk 0:02:54.2]} 20... Nxb4 {[%clk
0:01:13.9]} 21. Rxb4 {[%clk 0:02:55.1]} 21... d5 {[%clk 0:01:13.5]} 22. Qb3
{[%clk 0:02:55.4]} 22... dxc4 {[%clk 0:01:09.5]} 23. Qxc4+ {[%clk 0:02:55.9]}
23... Kh8 {[%clk 0:01:08.7]} 24. Be3 {[%clk 0:02:56.5]} 24... f5 {[%clk
0:01:02.6]} 25. Rfb1 {[%clk 0:02:54.4]} 25... f4 {[%clk 0:00:50.8]} 26. Rxb7
{[%clk 0:02:52]} 26... Qf5 {[%clk 0:00:51]} 27. Bc5 {[%clk 0:02:46.8]} 27... f3+
{[%clk 0:00:49.5]} 28. exf3 {[%clk 0:02:41.2]} 28... Qxf3+ {[%clk 0:00:49.5]}
29. Kg1 {[%clk 0:02:41.8]} 29... Rc8 {[%clk 0:00:37.3]} 30. Bxf8 {[%clk
0:02:39.1]} 30... Rxc4 {[%clk 0:00:20.4]} 31. Bxg7+ {[%clk 0:02:38.8]} 31... Kg8
{[%clk 0:00:21.1]} 32. dxc4 {[%clk 0:02:39.3]} 32... e4 {[%clk 0:00:17.3]} 33.
Bd4 {[%clk 0:02:39.4]} 1-0

[Event "Late-Titled-Tuesday-Blitz-October-24-2023"]
[Site "Chess.com"]
[Date "2023.10.24"]
[Round "3"]
[White "dosto07"]
[Black "kleinebeer98"]
[Result "0-1"]
[WhiteElo "2517"]
[BlackElo "2866"]
[TimeControl "180+1"]
[EndTime "14:27:03 PDT"]
[Termination "kleinebeer98 won by checkmate"]

1. e4 {[%clk 0:03:00.9]} 1... e5 {[%clk 0:02:59.6]} 2. Nf3 {[%clk 0:03:01]} 2...
Nc6 {[%clk 0:03:00.4]} 3. Bb5 {[%clk 0:03:01.1]} 3... f5 {[%clk 0:03:01.3]} 4.
d3 {[%clk 0:03:00.7]} 4... fxe4 {[%clk 0:03:01.8]} 5. dxe4 {[%clk 0:03:01.3]}
5... Nf6 {[%clk 0:03:02.7]} 6. O-O {[%clk 0:03:01.1]} 6... d6 {[%clk 0:03:02.7]}
7. Nc3 {[%clk 0:02:55.2]} 7... Be7 {[%clk 0:03:02.9]} 8. Bc4 {[%clk 0:02:44.6]}
8... Na5 {[%clk 0:03:02.4]} 9. Qd3 {[%clk 0:02:38.1]} 9... Nxc4 {[%clk
0:03:02.2]} 10. Qxc4 {[%clk 0:02:38.5]} 10... c6 {[%clk 0:03:02.8]} 11. Bg5
{[%clk 0:02:36.1]} 11... Qb6 {[%clk 0:03:02.3]} 12. b4 {[%clk 0:02:30.3]} 12...
Bg4 {[%clk 0:03:02.7]} 13. Be3 {[%clk 0:02:10.2]} 13... Qc7 {[%clk 0:02:59.1]}
14. Ng5 {[%clk 0:02:09.8]} 14... O-O-O {[%clk 0:02:47.5]} 15. Nf7 {[%clk
0:02:01.4]} 15... Rhf8 {[%clk 0:02:44.9]} 16. Nxd8 {[%clk 0:02:00.8]} 16... Rxd8
{[%clk 0:02:45.8]} 17. f3 {[%clk 0:01:59.3]} 17... Bh5 {[%clk 0:02:46]} 18. Rfd1
{[%clk 0:01:43.2]} 18... d5 {[%clk 0:02:44]} 19. exd5 {[%clk 0:01:35.5]} 19...
cxd5 {[%clk 0:02:44.9]} 20. Qxc7+ {[%clk 0:01:33.5]} 20... Kxc7 {[%clk
0:02:45.8]} 21. Nb5+ {[%clk 0:01:26.2]} 21... Kd7 {[%clk 0:02:46.3]} 22. Bxa7
{[%clk 0:01:19.2]} 22... Kc6 {[%clk 0:02:44.2]} 23. a4 {[%clk 0:00:55.1]} 23...
Bxb4 {[%clk 0:02:44.8]} 24. Rab1 {[%clk 0:00:49.4]} 24... Ba5 {[%clk 0:02:43.9]}
25. Bf2 {[%clk 0:00:47.3]} 25... Bg6 {[%clk 0:02:43.5]} 26. Re1 {[%clk 0:00:40]}
26... Re8 {[%clk 0:02:40.3]} 27. Re2 {[%clk 0:00:36.8]} 27... d4 {[%clk
0:02:39.4]} 28. Bg3 {[%clk 0:00:32]} 28... Kd5 {[%clk 0:02:40.1]} 29. Be1 {[%clk
0:00:20.2]} 29... Bd8 {[%clk 0:02:37.1]} 30. Rd1 {[%clk 0:00:17.1]} 30... Bb6
{[%clk 0:02:31.9]} 31. Bf2 {[%clk 0:00:16.3]} 31... Rc8 {[%clk 0:02:29.9]} 32.
Rdd2 {[%clk 0:00:13.5]} 32... d3 {[%clk 0:02:28.5]} 33. cxd3 {[%clk 0:00:12.2]}
33... Rc1+ {[%clk 0:02:28.7]} 34. Re1 {[%clk 0:00:12.1]} 34... Rxe1# {[%clk
0:02:29.2]} 0-1

[Event "Late-Titled-Tuesday-Blitz-October-24-2023"]
[Site "Chess.com"]
[Date "2023.10.24"]
[Round "3"]
[White "Witik"]
[Black "JackRodgers"]
[Result "1-0"]
[WhiteElo "2793"]
[BlackElo "2510"]
[TimeControl "180+1"]
[EndTime "14:27:11 PDT"]
[Termination "Witik won by checkmate"]

1. e4 {[%clk 0:02:59.4]} 1... c5 {[%clk 0:02:59.6]} 2. d4 {[%clk 0:02:59.2]}
2... cxd4 {[%clk 0:02:59.4]} 3. c3 {[%clk 0:02:59.7]} 3... d3 {[%clk 0:02:59.6]}
4. c4 {[%clk 0:02:59.8]} 4... Nc6 {[%clk 0:02:59.7]} 5. Bxd3 {[%clk 0:02:58.3]}
5... g6 {[%clk 0:02:59.4]} 6. Nc3 {[%clk 0:02:58.7]} 6... Bg7 {[%clk 0:02:59.8]}
7. Nge2 {[%clk 0:02:59.4]} 7... d6 {[%clk 0:03:00.3]} 8. b3 {[%clk 0:02:59.6]}
8... Nf6 {[%clk 0:02:58.8]} 9. Bb2 {[%clk 0:02:59.9]} 9... O-O {[%clk
0:02:59.2]} 10. O-O {[%clk 0:03:00.4]} 10... Nd7 {[%clk 0:02:57]} 11. Qd2 {[%clk
0:02:59.5]} 11... a6 {[%clk 0:02:52.7]} 12. Rad1 {[%clk 0:02:57]} 12... Re8
{[%clk 0:02:51.2]} 13. Nd5 {[%clk 0:02:55.6]} 13... Nb6 {[%clk 0:02:32.9]} 14.
Ng3 {[%clk 0:02:48.4]} 14... Nxd5 {[%clk 0:02:28.9]} 15. cxd5 {[%clk 0:02:45.3]}
15... Ne5 {[%clk 0:02:28.6]} 16. Bb1 {[%clk 0:02:45.1]} 16... Nd7 {[%clk
0:02:11.1]} 17. f4 {[%clk 0:02:34.6]} 17... Qb6+ {[%clk 0:02:05.6]} 18. Kh1
{[%clk 0:02:34.1]} 18... Bxb2 {[%clk 0:01:55.7]} 19. Qxb2 {[%clk 0:02:33.7]}
19... Nf6 {[%clk 0:01:56]} 20. h3 {[%clk 0:02:28.8]} 20... Rf8 {[%clk
0:01:28.4]} 21. e5 {[%clk 0:02:28.7]} 21... Ne8 {[%clk 0:01:27.9]} 22. Rde1
{[%clk 0:02:10.2]} 22... Bd7 {[%clk 0:01:24.5]} 23. f5 {[%clk 0:02:02.7]} 23...
Bb5 {[%clk 0:01:22.6]} 24. Rf3 {[%clk 0:01:57.3]} 24... Rc8 {[%clk 0:00:54.7]}
25. e6 {[%clk 0:01:56.4]} 25... fxe6 {[%clk 0:00:42.1]} 26. fxg6 {[%clk
0:01:53.1]} 26... hxg6 {[%clk 0:00:38]} 27. Rxf8+ {[%clk 0:01:48.4]} 27... Kxf8
{[%clk 0:00:38.9]} 28. Qh8+ {[%clk 0:01:48.4]} 28... Kf7 {[%clk 0:00:39.6]} 29.
dxe6# {[%clk 0:01:48.1]} 1-0

[Event "Late-Titled-Tuesday-Blitz-October-24-2023"]
[Site "Chess.com"]
[Date "2023.10.24"]
[Round "3"]
[White "R2D2PTY"]
[Black "DvaHrasta"]
[Result "0-1"]
[WhiteElo "2284"]
[BlackElo "2487"]
[TimeControl "180+1"]
[EndTime "14:27:12 PDT"]
[Termination "DvaHrasta won by resignation"]

1. e4 {[%clk 0:01:06.3]} 1... c6 {[%clk 0:02:58.8]} 2. d4 {[%clk 0:01:06]} 2...
d5 {[%clk 0:02:58.9]} 3. f3 {[%clk 0:01:06.9]} 3... e6 {[%clk 0:02:56.9]} 4. Nc3
{[%clk 0:01:06.5]} 4... Bb4 {[%clk 0:02:56.7]} 5. Bd2 {[%clk 0:01:07.2]} 5...
Nf6 {[%clk 0:02:56]} 6. e5 {[%clk 0:01:05.2]} 6... Nfd7 {[%clk 0:02:55.6]} 7. f4
{[%clk 0:01:06.1]} 7... c5 {[%clk 0:02:51.7]} 8. Nb5 {[%clk 0:01:05.3]} 8...
Bxd2+ {[%clk 0:02:45.9]} 9. Qxd2 {[%clk 0:01:06.2]} 9... O-O {[%clk 0:02:43.8]}
10. Nf3 {[%clk 0:01:06.7]} 10... cxd4 {[%clk 0:02:41.2]} 11. Nfxd4 {[%clk
0:01:05.2]} 11... Nc6 {[%clk 0:02:37.3]} 12. c3 {[%clk 0:01:02.4]} 12... Nc5
{[%clk 0:02:34]} 13. Bd3 {[%clk 0:00:54.5]} 13... f6 {[%clk 0:02:31.3]} 14. Nxc6
{[%clk 0:00:25]} 14... bxc6 {[%clk 0:02:25.6]} 15. Nd6 {[%clk 0:00:18.7]} 15...
fxe5 {[%clk 0:02:10]} 16. fxe5 {[%clk 0:00:19.6]} 16... Qh4+ {[%clk 0:02:09.3]}
17. g3 {[%clk 0:00:20.2]} 17... Qh5 {[%clk 0:02:09.4]} 18. Qe2 {[%clk
0:00:13.1]} 18... Qxe5 {[%clk 0:02:05.1]} 19. Bxh7+ {[%clk 0:00:10.9]} 19...
Kxh7 {[%clk 0:01:59.4]} 20. Qxe5 {[%clk 0:00:09]} 20... Nd3+ {[%clk 0:01:59.5]}
21. Kd2 {[%clk 0:00:09.2]} 21... Nxe5 {[%clk 0:01:59.8]} 22. Rae1 {[%clk
0:00:09.5]} 0-1

[Event "Late-Titled-Tuesday-Blitz-October-24-2023"]
[Site "Chess.com"]
[Date "2023.10.24"]
[Round "3"]
[White "ellatambien"]
[Black "topin8"]
[Result "1-0"]
[WhiteElo "2641"]
[BlackElo "2450"]
[TimeControl "180+1"]
[EndTime "14:27:15 PDT"]
[Termination "ellatambien won on time"]

1. e4 {[%clk 0:03:00.9]} 1... e5 {[%clk 0:02:59.7]} 2. Nf3 {[%clk 0:03:00.7]}
2... Nc6 {[%clk 0:03:00]} 3. Nc3 {[%clk 0:03:00.4]} 3... Nf6 {[%clk 0:02:59.5]}
4. d4 {[%clk 0:02:59.3]} 4... exd4 {[%clk 0:03:00.4]} 5. Nxd4 {[%clk 0:02:58.2]}
5... Bb4 {[%clk 0:03:00.8]} 6. Nxc6 {[%clk 0:02:58.3]} 6... bxc6 {[%clk
0:03:01.7]} 7. Bd3 {[%clk 0:02:58.5]} 7... O-O {[%clk 0:03:00.1]} 8. O-O {[%clk
0:02:58.7]} 8... d5 {[%clk 0:03:00.6]} 9. exd5 {[%clk 0:02:59.5]} 9... cxd5
{[%clk 0:03:01.5]} 10. Bg5 {[%clk 0:02:59.4]} 10... c6 {[%clk 0:03:00.4]} 11.
Na4 {[%clk 0:02:59.9]} 11... Bd6 {[%clk 0:02:14.9]} 12. Re1 {[%clk 0:02:58.8]}
12... h6 {[%clk 0:01:56.4]} 13. Bh4 {[%clk 0:02:59]} 13... Rb8 {[%clk
0:01:55.9]} 14. c3 {[%clk 0:02:58.1]} 14... Be6 {[%clk 0:01:39.8]} 15. Bc2
{[%clk 0:02:58.1]} 15... g5 {[%clk 0:00:39.7]} 16. Bg3 {[%clk 0:02:57.2]} 16...
Qd7 {[%clk 0:00:20.8]} 17. Qd4 {[%clk 0:02:53.9]} 17... Nh5 {[%clk 0:00:08]} 18.
Bxd6 {[%clk 0:02:42.8]} 18... Qxd6 {[%clk 0:00:08.9]} 19. b4 {[%clk 0:02:43.1]}
19... Ra8 {[%clk 0:00:08.4]} 20. Nc5 {[%clk 0:02:39.3]} 20... Rfe8 {[%clk
0:00:05.3]} 21. Re3 {[%clk 0:02:28.9]} 21... Qf4 {[%clk 0:00:05.4]} 22. Qd3
{[%clk 0:02:24.3]} 22... Nf6 {[%clk 0:00:05.1]} 23. Rae1 {[%clk 0:02:20.4]}
23... Qd6 {[%clk 0:00:05]} 24. Nxe6 {[%clk 0:02:14.3]} 24... Rxe6 {[%clk
0:00:05.9]} 25. Rxe6 {[%clk 0:02:14.2]} 25... fxe6 {[%clk 0:00:06.8]} 26. Qg6+
{[%clk 0:02:14.5]} 1-0

[Event "Late-Titled-Tuesday-Blitz-October-24-2023"]
[Site "Chess.com"]
[Date "2023.10.24"]
[Round "3"]
[White "SlippperyWhenWet"]
[Black "kalxandria"]
[Result "1-0"]
[WhiteElo "2353"]
[BlackElo "2045"]
[TimeControl "180+1"]
[EndTime "14:27:17 PDT"]
[Termination "SlippperyWhenWet won by resignation"]

1. e4 {[%clk 0:02:59.9]} 1... e6 {[%clk 0:02:54.5]} 2. d4 {[%clk 0:02:59.8]}
2... d5 {[%clk 0:02:53.7]} 3. exd5 {[%clk 0:02:57.7]} 3... exd5 {[%clk
0:02:52.8]} 4. Nf3 {[%clk 0:02:58.2]} 4... Bd6 {[%clk 0:02:51.7]} 5. Bd3 {[%clk
0:02:58.7]} 5... Ne7 {[%clk 0:02:50.6]} 6. O-O {[%clk 0:02:58.8]} 6... O-O
{[%clk 0:02:49.1]} 7. c4 {[%clk 0:02:59.5]} 7... dxc4 {[%clk 0:02:47.3]} 8. Bxc4
{[%clk 0:03:00.4]} 8... Nbc6 {[%clk 0:02:42.3]} 9. Nc3 {[%clk 0:03:00.5]} 9...
Bg4 {[%clk 0:02:40.5]} 10. Be3 {[%clk 0:02:42.8]} 10... Nf5 {[%clk 0:02:19.3]}
11. h3 {[%clk 0:02:40.2]} 11... Bxf3 {[%clk 0:02:13.1]} 12. Qxf3 {[%clk
0:02:36.9]} 12... Nxe3 {[%clk 0:02:10.2]} 13. fxe3 {[%clk 0:02:36.4]} 13... Qe7
{[%clk 0:01:53.4]} 14. Nd5 {[%clk 0:02:26.1]} 14... Qd7 {[%clk 0:01:45.6]} 15.
Bd3 {[%clk 0:02:10]} 15... Kh8 {[%clk 0:01:34.9]} 16. Nf6 {[%clk 0:01:56.2]}
16... Qe6 {[%clk 0:01:13.9]} 17. Nxh7 {[%clk 0:01:43.1]} 17... Rfe8 {[%clk
0:01:07.1]} 18. Ng5 {[%clk 0:01:15.8]} 18... Qxe3+ {[%clk 0:01:03.7]} 19. Qxe3
{[%clk 0:01:16.1]} 19... Rxe3 {[%clk 0:01:04.3]} 20. Nxf7+ {[%clk 0:01:16.8]}
20... Kg8 {[%clk 0:01:03.3]} 21. Bc4 {[%clk 0:01:14.8]} 21... Na5 {[%clk
0:00:59.5]} 22. Nxd6+ {[%clk 0:01:14.2]} 22... Nxc4 {[%clk 0:00:57.2]} 23. Nxc4
{[%clk 0:01:15.1]} 1-0

[Event "Late-Titled-Tuesday-Blitz-October-24-2023"]
[Site "Chess.com"]
[Date "2023.10.24"]
[Round "3"]
[White "GoltsevDmitry2000"]
[Black "MatthewG-p4p"]
[Result "0-1"]
[WhiteElo "2643"]
[BlackElo "2921"]
[TimeControl "180+1"]
[EndTime "14:27:18 PDT"]
[Termination "MatthewG-p4p won by resignation"]

1. e4 {[%clk 0:02:59.8]} 1... e6 {[%clk 0:03:00.3]} 2. d4 {[%clk 0:02:59.4]}
2... d5 {[%clk 0:03:00.8]} 3. exd5 {[%clk 0:03:00.3]} 3... exd5 {[%clk
0:03:01.7]} 4. Nf3 {[%clk 0:03:00.8]} 4... Nf6 {[%clk 0:03:02.2]} 5. Bd3 {[%clk
0:02:59.4]} 5... c5 {[%clk 0:03:02.4]} 6. O-O {[%clk 0:02:58.2]} 6... Be7 {[%clk
0:03:00.1]} 7. dxc5 {[%clk 0:02:58.1]} 7... Bxc5 {[%clk 0:03:00.5]} 8. Re1+
{[%clk 0:02:58.7]} 8... Be6 {[%clk 0:03:01.1]} 9. Be3 {[%clk 0:02:56.7]} 9...
Bd6 {[%clk 0:02:59]} 10. h3 {[%clk 0:02:50.1]} 10... O-O {[%clk 0:02:58]} 11.
Nbd2 {[%clk 0:02:50.7]} 11... Nc6 {[%clk 0:02:57.9]} 12. c3 {[%clk 0:02:50.3]}
12... Re8 {[%clk 0:02:55.7]} 13. Nb3 {[%clk 0:02:46.8]} 13... Ne4 {[%clk
0:02:52.5]} 14. Nbd4 {[%clk 0:02:40.7]} 14... Bd7 {[%clk 0:02:50.2]} 15. Qb3
{[%clk 0:02:36.2]} 15... Nc5 {[%clk 0:02:40.1]} 16. Qc2 {[%clk 0:01:59.8]} 16...
Nxd3 {[%clk 0:02:40]} 17. Qxd3 {[%clk 0:02:00.7]} 17... Qf6 {[%clk 0:02:40.1]}
18. Bg5 {[%clk 0:01:57.4]} 18... Qg6 {[%clk 0:02:39.1]} 19. Qxg6 {[%clk
0:01:56.1]} 19... hxg6 {[%clk 0:02:40]} 20. Rxe8+ {[%clk 0:01:54.2]} 20... Rxe8
{[%clk 0:02:40.2]} 21. Re1 {[%clk 0:01:54.2]} 21... Rxe1+ {[%clk 0:02:32.6]} 22.
Nxe1 {[%clk 0:01:55.1]} 22... f6 {[%clk 0:02:32]} 23. Be3 {[%clk 0:01:54.4]}
23... Ne5 {[%clk 0:02:29.9]} 24. b3 {[%clk 0:01:49.5]} 24... Ba3 {[%clk
0:02:24.7]} 25. Ndf3 {[%clk 0:01:48.2]} 25... a6 {[%clk 0:02:23.6]} 26. Nxe5
{[%clk 0:01:40]} 26... fxe5 {[%clk 0:02:24.5]} 27. Nd3 {[%clk 0:01:40.3]} 27...
Bd6 {[%clk 0:02:23.9]} 28. f4 {[%clk 0:01:36.5]} 28... e4 {[%clk 0:02:19.1]} 29.
Ne5 {[%clk 0:01:35.9]} 29... Be8 {[%clk 0:02:18.9]} 30. Kf2 {[%clk 0:01:33.8]}
30... g5 {[%clk 0:02:18.9]} 31. g3 {[%clk 0:01:25.2]} 31... gxf4 {[%clk
0:02:19.2]} 32. gxf4 {[%clk 0:01:25.4]} 32... Bh5 {[%clk 0:02:13.2]} 33. Bd4
{[%clk 0:01:24.3]} 33... Kf8 {[%clk 0:02:11.8]} 34. c4 {[%clk 0:01:21.9]} 34...
dxc4 {[%clk 0:02:10.5]} 35. bxc4 {[%clk 0:01:22.1]} 35... Bd1 {[%clk 0:02:03.1]}
36. Ke3 {[%clk 0:01:16.7]} 36... Bc2 {[%clk 0:02:03.1]} 37. Bc5 {[%clk
0:01:15.1]} 37... Bxc5+ {[%clk 0:02:03]} 38. Kd2 {[%clk 0:01:11.8]} 38... Ba4
{[%clk 0:02:03.5]} 0-1

[Event "Late-Titled-Tuesday-Blitz-October-24-2023"]
[Site "Chess.com"]
[Date "2023.10.24"]
[Round "3"]
[White "lukas_111111"]
[Black "semchik73"]
[Result "1-0"]
[WhiteElo "2638"]
[BlackElo "2445"]
[TimeControl "180+1"]
[EndTime "14:27:20 PDT"]
[Termination "lukas_111111 won by resignation"]

1. b3 {[%clk 0:03:00.9]} 1... Nf6 {[%clk 0:02:59]} 2. Bb2 {[%clk 0:03:00.9]}
2... e6 {[%clk 0:02:59.2]} 3. c4 {[%clk 0:02:59.9]} 3... d5 {[%clk 0:02:59.6]}
4. e3 {[%clk 0:02:58.4]} 4... c5 {[%clk 0:02:57.6]} 5. Nf3 {[%clk 0:02:57.8]}
5... Nc6 {[%clk 0:02:57.2]} 6. cxd5 {[%clk 0:02:51.8]} 6... exd5 {[%clk
0:02:56.9]} 7. Bb5 {[%clk 0:02:50.7]} 7... a6 {[%clk 0:02:48.8]} 8. Bxc6+ {[%clk
0:02:49.4]} 8... bxc6 {[%clk 0:02:49.2]} 9. O-O {[%clk 0:02:46.1]} 9... Bg4
{[%clk 0:02:46.6]} 10. d3 {[%clk 0:02:44.9]} 10... Bd6 {[%clk 0:02:43.1]} 11.
Nbd2 {[%clk 0:02:44.8]} 11... O-O {[%clk 0:02:39.4]} 12. Qc2 {[%clk 0:02:44.8]}
12... Qd7 {[%clk 0:02:27.4]} 13. Ne5 {[%clk 0:02:41.4]} 13... Qf5 {[%clk
0:02:17.9]} 14. f4 {[%clk 0:02:40.3]} 14... d4 {[%clk 0:01:47.1]} 15. e4 {[%clk
0:02:37.2]} 15... Qh5 {[%clk 0:01:43.9]} 16. Ndc4 {[%clk 0:02:14.2]} 16... Bc7
{[%clk 0:01:32.5]} 17. Rae1 {[%clk 0:02:09]} 17... Rfe8 {[%clk 0:01:25.2]} 18.
Nxc6 {[%clk 0:02:07]} 18... g5 {[%clk 0:01:11.8]} 19. Bc1 {[%clk 0:01:50.9]}
19... Qh6 {[%clk 0:00:57.6]} 20. N6e5 {[%clk 0:01:49.2]} 20... gxf4 {[%clk
0:00:45.8]} 21. Bxf4 {[%clk 0:01:47.9]} 21... Qh5 {[%clk 0:00:45.8]} 22. Nxg4
{[%clk 0:01:46.5]} 22... Nxg4 {[%clk 0:00:42.2]} 23. Bxc7 {[%clk 0:01:45.8]}
23... f6 {[%clk 0:00:31.2]} 24. Bg3 {[%clk 0:01:43.9]} 1-0

[Event "Late-Titled-Tuesday-Blitz-October-24-2023"]
[Site "Chess.com"]
[Date "2023.10.24"]
[Round "3"]
[White "rdarruda"]
[Black "cassoulet"]
[Result "0-1"]
[WhiteElo "2545"]
[BlackElo "2795"]
[TimeControl "180+1"]
[EndTime "14:27:22 PDT"]
[Termination "cassoulet won by resignation"]

1. d4 {[%clk 0:02:48.5]} 1... Nf6 {[%clk 0:02:59.9]} 2. Nf3 {[%clk 0:02:48.2]}
2... g6 {[%clk 0:03:00.5]} 3. g3 {[%clk 0:02:48.5]} 3... Bg7 {[%clk 0:03:01]} 4.
Bg2 {[%clk 0:02:49]} 4... O-O {[%clk 0:03:01.7]} 5. O-O {[%clk 0:02:49.1]} 5...
d5 {[%clk 0:03:02.4]} 6. c4 {[%clk 0:02:48.6]} 6... dxc4 {[%clk 0:03:03.3]} 7.
Ne5 {[%clk 0:02:47.1]} 7... Nfd7 {[%clk 0:03:00.7]} 8. Nxc4 {[%clk 0:02:41.5]}
8... Nb6 {[%clk 0:03:00.6]} 9. Nxb6 {[%clk 0:02:40.6]} 9... axb6 {[%clk
0:03:01.4]} 10. e3 {[%clk 0:02:39.5]} 10... Nc6 {[%clk 0:02:58.5]} 11. Nc3
{[%clk 0:02:35.8]} 11... e5 {[%clk 0:02:57.5]} 12. d5 {[%clk 0:02:34.9]} 12...
Na5 {[%clk 0:02:50.4]} 13. b3 {[%clk 0:02:28.3]} 13... e4 {[%clk 0:02:49.3]} 14.
Bb2 {[%clk 0:02:28.1]} 14... f5 {[%clk 0:02:49.5]} 15. Qd2 {[%clk 0:02:24.8]}
15... Bd7 {[%clk 0:02:39.7]} 16. Rad1 {[%clk 0:02:21.7]} 16... b5 {[%clk
0:02:37]} 17. d6 {[%clk 0:02:08.7]} 17... c6 {[%clk 0:02:34.3]} 18. Nb1 {[%clk
0:02:07.3]} 18... Bxb2 {[%clk 0:02:29.6]} 19. Qxb2 {[%clk 0:02:08.2]} 19... Qf6
{[%clk 0:02:29.7]} 20. Qc1 {[%clk 0:01:56.2]} 20... Rfd8 {[%clk 0:02:27.3]} 21.
Rd2 {[%clk 0:01:55.9]} 21... b6 {[%clk 0:02:26.6]} 22. Rfd1 {[%clk 0:01:56.4]}
22... Nb7 {[%clk 0:02:26.6]} 23. f3 {[%clk 0:01:47.5]} 23... Nc5 {[%clk
0:02:18.1]} 24. fxe4 {[%clk 0:01:43.7]} 24... fxe4 {[%clk 0:02:19]} 25. Nc3
{[%clk 0:01:39.7]} 25... Qe5 {[%clk 0:02:16.1]} 26. Rd4 {[%clk 0:01:35.3]} 26...
Bg4 {[%clk 0:02:03.6]} 27. R1d2 {[%clk 0:01:29.7]} 27... Bf3 {[%clk 0:02:02]}
28. Qc2 {[%clk 0:01:21.9]} 28... Qg5 {[%clk 0:01:54.5]} 29. Bxf3 {[%clk
0:01:10.3]} 29... Qxe3+ {[%clk 0:01:53.2]} 30. Kg2 {[%clk 0:01:01]} 30... exf3+
{[%clk 0:01:52.7]} 31. Kh3 {[%clk 0:01:01]} 31... Ne6 {[%clk 0:01:32.5]} 32. Re4
{[%clk 0:00:53.4]} 32... Ng5+ {[%clk 0:01:31.8]} 33. Kg4 {[%clk 0:00:51.8]} 0-1

[Event "Late-Titled-Tuesday-Blitz-October-24-2023"]
[Site "Chess.com"]
[Date "2023.10.24"]
[Round "3"]
[White "leoduarte"]
[Black "ValeriyGrinev"]
[Result "1/2-1/2"]
[WhiteElo "2421"]
[BlackElo "2598"]
[TimeControl "180+1"]
[EndTime "14:27:22 PDT"]
[Termination "Game drawn by repetition"]

1. d4 {[%clk 0:03:00.3]} 1... d5 {[%clk 0:02:58.8]} 2. Nf3 {[%clk 0:02:58.6]}
2... Nf6 {[%clk 0:02:57.9]} 3. Bf4 {[%clk 0:02:58.7]} 3... c5 {[%clk 0:02:57.5]}
4. e3 {[%clk 0:02:58.8]} 4... e6 {[%clk 0:02:58.1]} 5. c3 {[%clk 0:02:52.2]}
5... Bd6 {[%clk 0:02:58.2]} 6. Bg3 {[%clk 0:02:51.5]} 6... O-O {[%clk
0:02:57.6]} 7. Bd3 {[%clk 0:02:51.4]} 7... Qc7 {[%clk 0:02:57.6]} 8. Nbd2 {[%clk
0:02:47.5]} 8... Nbd7 {[%clk 0:02:57.6]} 9. O-O {[%clk 0:02:38.3]} 9... e5
{[%clk 0:02:57.9]} 10. dxe5 {[%clk 0:02:37.1]} 10... Nxe5 {[%clk 0:02:58.8]} 11.
Nxe5 {[%clk 0:02:37.3]} 11... Bxe5 {[%clk 0:02:59.7]} 12. Bxe5 {[%clk
0:02:37.1]} 12... Qxe5 {[%clk 0:03:00.6]} 13. Nf3 {[%clk 0:02:37.7]} 13... Qc7
{[%clk 0:03:00.3]} 14. c4 {[%clk 0:02:37.5]} 14... dxc4 {[%clk 0:02:59.5]} 15.
Bxc4 {[%clk 0:02:38.4]} 15... b6 {[%clk 0:02:58.8]} 16. Qe2 {[%clk 0:02:26.1]}
16... Bb7 {[%clk 0:02:58.9]} 17. Rfd1 {[%clk 0:02:26.5]} 17... Rad8 {[%clk
0:02:52.1]} 18. h3 {[%clk 0:02:26.3]} 18... Ne4 {[%clk 0:02:49.8]} 19. Rxd8
{[%clk 0:02:19.6]} 19... Rxd8 {[%clk 0:02:50.3]} 20. Rd1 {[%clk 0:02:19.5]}
20... Nd6 {[%clk 0:02:46.9]} 21. Bd5 {[%clk 0:02:15.7]} 21... Bxd5 {[%clk
0:02:42.4]} 22. Rxd5 {[%clk 0:02:16.6]} 22... Nb7 {[%clk 0:02:43.2]} 23. Qd3
{[%clk 0:02:13.3]} 23... c4 {[%clk 0:02:40.7]} 24. Rxd8+ {[%clk 0:02:08.3]}
24... Nxd8 {[%clk 0:02:37.4]} 25. Qd5 {[%clk 0:02:08.1]} 25... Ne6 {[%clk
0:02:10.7]} 26. Ne5 {[%clk 0:01:38]} 26... c3 {[%clk 0:02:08.5]} 27. bxc3 {[%clk
0:01:36.9]} 27... Qxc3 {[%clk 0:02:09.4]} 28. g3 {[%clk 0:01:34.9]} 28... Qc8
{[%clk 0:02:04.3]} 29. h4 {[%clk 0:01:30.4]} 29... h6 {[%clk 0:01:59.7]} 30. Nc6
{[%clk 0:01:26.4]} 30... Qc7 {[%clk 0:01:57.3]} 31. Ne5 {[%clk 0:01:22.6]} 31...
a5 {[%clk 0:01:52.6]} 32. Qa8+ {[%clk 0:01:18.8]} 32... Qd8 {[%clk 0:01:49.8]}
33. Qb7 {[%clk 0:01:02.1]} 33... Qc7 {[%clk 0:01:44.7]} 34. Qa8+ {[%clk
0:00:53.4]} 34... Kh7 {[%clk 0:01:38.5]} 35. Qe4+ {[%clk 0:00:53.2]} 35... Kg8
{[%clk 0:01:36.6]} 36. Qa8+ {[%clk 0:00:52.9]} 1/2-1/2